fUSD/lending_fUSD_20260116
["ID","MTS","AMOUNT","RATE_DAILY","PERIOD"]
[402129378,1768533073013,-517.42,0.00036164,10]
[402129379,1768533073023,-619.7,0.00036164,10]
[402129380,1768533073032,-548.97,0.00036164,10]
[402129381,1768533073042,-500.0,0.00036164,10]
[402129382,1768533073052,-500.0,0.00036164,10]
[402129383,1768533073062,-591.02,0.00036164,10]
[402129384,1768533073074,-606.54,0.00036164,10]
[402129385,1768533073084,-500.0,0.00036164,10]
[402129386,1768533073094,-675.6,0.00036164,10]
[402129387,1768533073104,-1026.38,0.00036164,10]
[402129388,1768533073116,-500.0,0.00036164,10]
[402129389,1768533073128,-530.04,0.00036164,10]
[402129390,1768533073138,-1689.93,0.00036164,10]
[402129391,1768533073148,-500.0,0.00036164,10]
[402129392,1768533073159,-500.0,0.00036164,10]
[402129393,1768533073170,-500.0,0.00036164,10]
[402129394,1768533073181,-500.0,0.00036164,10]
[402129395,1768533073191,-802.54,0.00036164,10]
[402129396,1768533073202,-500.0,0.00036164,10]
[402129397,1768533073213,-500.0,0.00036164,10]
[402129398,1768533073224,-500.0,0.00036164,10]
[402129399,1768533073234,-890.89,0.00036164,10]
[402129400,1768533073247,-500.0,0.00036164,10]
[402129401,1768533073259,-561.57,0.00036164,10]
[402129402,1768533073269,-500.0,0.00036164,10]
[402129403,1768533073279,-500.0,0.00036164,10]
[402129404,1768533073289,-500.0,0.00036164,10]
[402129405,1768533073301,-500.0,0.00036164,10]
[402129406,1768533073312,-663.6,0.00036164,10]
[402129407,1768533073322,-829.9,0.00036164,10]
[402129408,1768533073332,-694.91,0.00036164,10]
[402129409,1768533073346,-500.0,0.00036164,10]
[402129410,1768533073356,-500.0,0.00036164,10]
[402129411,1768533073366,-673.27,0.00036164,10]
[402129412,1768533073379,-500.0,0.00036164,10]
[402129413,1768533073389,-554.39128501,0.00036164,10]
[402129414,1768533073401,-500.0,0.00036164,10]
[402129415,1768533073412,-500.0,0.00036164,10]
[402129416,1768533073422,-551.21,0.00036164,10]
[402129417,1768533073431,-601.75,0.00036164,10]
[402129418,1768533073441,-633.17,0.00036164,10]
[402129419,1768533073451,-691.87,0.00036164,10]
[402129420,1768533073461,-795.96,0.00036164,10]
[402129421,1768533073470,-500.0,0.00036164,10]
[402129422,1768533073480,-946.1,0.00036164,10]
[402129423,1768533073490,-1022.34,0.00036164,10]
[402129424,1768533073500,-521.39,0.00036164,10]
[402129425,1768533073511,-500.0,0.00036164,10]
[402129426,1768533073520,-500.0,0.00036164,10]
[402129427,1768533073530,-500.0,0.00036164,10]
[402129428,1768533073539,-500.0,0.00036164,10]
[402129429,1768533073549,-680.62,0.00036164,10]
[402129430,1768533073558,-500.0,0.00036164,10]
[402129431,1768533073567,-500.0,0.00036164,10]
[402129432,1768533073577,-671.14,0.00036164,10]
[402129433,1768533073586,-500.0,0.00036164,10]
[402129434,1768533073596,-500.0,0.00036164,10]
[402129435,1768533073605,-500.0,0.00036164,10]
[402129436,1768533073614,-1253.19,0.00036164,10]
[402129437,1768533073624,-500.0,0.00036164,10]
[402129438,1768533073633,-688.21,0.00036164,10]
[402129439,1768533073642,-500.0,0.00036164,10]
[402129440,1768533073652,-500.0,0.00036164,10]
[402129441,1768533073662,-500.0,0.00036164,10]
[402129442,1768533073671,-573.52,0.00036164,10]
[402129443,1768533073680,-1497.97,0.00036164,10]
[402129444,1768533073690,-572.74,0.00036164,10]
[402129445,1768533073700,-500.0,0.00036164,10]
[402129446,1768533073709,-768.31,0.00036164,10]
[402129447,1768533073718,-500.0,0.00036164,10]
[402129448,1768533073727,-500.0,0.00036164,10]
[402129449,1768533073737,-711.58,0.00036164,10]
[402129450,1768533073747,-696.61,0.00036164,10]
[402129451,1768533073756,-500.0,0.00036164,10]
[402129452,1768533073766,-500.0,0.00036164,10]
[402129453,1768533073776,-500.0,0.00036164,10]
[402129454,1768533073786,-500.0,0.00036164,10]
[402129455,1768533073795,-500.0,0.00036164,10]
[402129456,1768533073804,-704.02,0.00036164,10]
[402129457,1768533073814,-797.95,0.00036164,10]
[402129458,1768533073823,-537.68,0.00036164,10]
[402129459,1768533073833,-571.19,0.00036164,10]
[402129460,1768533073842,-591.23,0.00036164,10]
[402129461,1768533073852,-500.0,0.00036164,10]
[402129462,1768533073862,-500.0,0.00036164,10]
[402129463,1768533073871,-607.28450743,0.00036164,10]
[402129464,1768533073880,-772.62,0.00036164,10]
[402129465,1768533073890,-500.0,0.00036164,10]
[402129466,1768533073900,-691.11,0.00036164,10]
[402129467,1768533073910,-908.75,0.00036164,10]
[402129468,1768533073919,-800.34,0.00036164,10]
[402129469,1768533073928,-300.0,0.00036164,2]
[402129470,1768533073938,-500.0,0.00036164,10]
[402129471,1768533073947,-628.54,0.00036164,10]
[402129472,1768533073957,-25000.0,0.00036164,10]
[402129473,1768533073966,-500.0,0.00036164,10]
[402129474,1768533073976,-500.0,0.00036164,10]
[402129475,1768533073986,-1033.86,0.00036164,10]
[402129476,1768533073996,-404.43781123,0.00036164,10]
[402129477,1768533074006,-827.14,0.00036164,10]
[402129478,1768533074016,-504.61525373,0.00036164,10]
[402129479,1768533074025,-500.0,0.00036164,10]
[402129480,1768533074035,-500.0,0.00036164,10]
[402129481,1768533074044,-500.0,0.00036164,10]
[402129482,1768533074054,-540.98,0.00036164,10]
[402129483,1768533074063,-1133.3,0.00036164,10]
[402129484,1768533074072,-528.67,0.00036164,10]
[402129485,1768533074082,-500.0,0.00036164,10]
[402129486,1768533074092,-602.24765563,0.00036164,10]
[402129487,1768533074101,-157.162011,0.00036164,10]
[402129488,1768533074111,-896.53,0.00036164,10]
[402129489,1768533074121,-1027.56,0.00036164,10]
[402129490,1768533074131,-979.07,0.00036164,10]
[402129491,1768533074140,-187.768818,0.00036164,10]
[402129492,1768533074150,-375.96,0.00036164,10]
[402129493,1768533074160,-1037.69,0.00036164,10]
[402129494,1768533074169,-694.88,0.00036164,10]
[402129495,1768533074178,-500.0,0.00036164,10]
[402129496,1768533074188,-500.0,0.00036164,10]
[402129497,1768533074198,-509.43261134,0.00036164,10]
[402129498,1768533074207,-500.0,0.00036164,10]
[402129499,1768533074216,-634.26,0.00036164,10]
[402129500,1768533074226,-500.0,0.00036164,10]
[402129501,1768533074235,-616.05,0.00036164,10]
[402129502,1768533074245,-550.72,0.00036164,10]
[402129503,1768533074254,-500.0,0.00036164,10]
[402129504,1768533074263,-500.0,0.00036164,10]
[402129505,1768533074273,-500.0,0.00036164,10]
[402129506,1768533074283,-500.0,0.00036164,10]
[402129507,1768533074292,-500.0,0.00036164,10]
[402129508,1768533074305,-1082.46,0.00036164,10]
[402129509,1768533074314,-500.0,0.00036164,10]
[402129510,1768533074324,-500.0,0.00036164,10]
[402129511,1768533074333,-500.0,0.00036164,10]
[402129512,1768533074344,-500.0,0.00036164,10]
[402129513,1768533074353,-1297.91,0.00036164,10]
[402129514,1768533074362,-701.66,0.00036164,10]
[402129515,1768533074373,-500.0,0.00036164,10]
[402129516,1768533074385,-855.85,0.00036164,10]
[402129517,1768533074394,-500.0,0.00036164,10]
[402129518,1768533074403,-500.0,0.00036164,10]
[402129519,1768533074413,-500.0,0.00036164,10]
[402129520,1768533074422,-500.0,0.00036164,10]
[402129521,1768533074431,-500.0,0.00036164,10]
[402129522,1768533074440,-500.0,0.00036164,10]
[402129523,1768533074449,-500.0,0.00036164,10]
[402129524,1768533074458,-500.0,0.00036164,10]
[402129525,1768533074467,-685.86,0.00036164,10]
[402129526,1768533074476,-632.73,0.00036164,10]
[402129527,1768533074486,-1514.61,0.00036164,10]
[402129528,1768533074495,-864.14,0.00036164,10]
[402129529,1768533074507,-1087.61,0.00036164,10]
[402129530,1768533074518,-594.78,0.00036164,10]
[402129531,1768533074529,-500.0,0.00036164,10]
[402129532,1768533074538,-746.46,0.00036164,10]
[402129533,1768533074547,-500.0,0.00036164,10]
[402129534,1768533074556,-500.0,0.00036164,10]
[402129535,1768533074566,-1061.23,0.00036164,10]
[402129536,1768533074575,-1519.97,0.00036164,10]
[402129537,1768533074585,-946.08,0.00036164,10]
[402129538,1768533074595,-500.0,0.00036164,10]
[402129539,1768533074606,-500.0,0.00036164,10]
[402129540,1768533074615,-267.39,0.00036164,10]
[402129541,1768533074625,-817.22,0.00036164,10]
[402129542,1768533074635,-1183.55,0.00036164,10]
[402129543,1768533074645,-500.0,0.00036164,10]
[402129544,1768533074655,-500.0,0.00036164,10]
[402129545,1768533074664,-500.0,0.00036164,10]
[402129546,1768533074674,-867.35,0.00036164,10]
[402129547,1768533074683,-626.91,0.00036164,10]
[402129548,1768533074692,-668.68,0.00036164,10]
[402129549,1768533074702,-500.0,0.00036164,10]
[402129550,1768533074712,-600.35,0.00036164,10]
[402129551,1768533074721,-1034.79,0.00036164,10]
[402129552,1768533074731,-500.0,0.00036164,10]
[402129553,1768533074741,-500.0,0.00036164,10]
[402129554,1768533074751,-649.29,0.00036164,10]
[402129555,1768533074760,-500.0,0.00036164,10]
[402129556,1768533074770,-506.84826736,0.00036164,10]
[402129557,1768533074780,-500.0,0.00036164,10]
[402129558,1768533074790,-500.0,0.00036164,10]
[402129559,1768533074800,-591.94,0.00036164,10]
[402129560,1768533074810,-500.0,0.00036164,10]
[402129561,1768533074820,-500.0,0.00036164,10]
[402129562,1768533074830,-951.36,0.00036164,10]
[402129563,1768533074839,-500.0,0.00036164,10]
[402129564,1768533074849,-500.0,0.00036164,10]
[402129565,1768533074858,-500.0,0.00036164,10]
[402129566,1768533074868,-858.34,0.00036164,10]
[402129567,1768533074877,-851.71,0.00036164,10]
[402129568,1768533074887,-500.0,0.00036164,10]
[402129569,1768533074896,-500.0,0.00036164,10]
[402129570,1768533074906,-989.02,0.00036164,10]
[402129571,1768533075171,-1568.25,0.00036164,10]
[402129572,1768533075188,-500.0,0.00036164,10]
[402129573,1768533075197,-500.0,0.00036164,10]
[402129574,1768533075207,-559.63,0.00036164,10]
[402129575,1768533075216,-1194.21,0.00036164,10]
[402129576,1768533075225,-561.07,0.00036164,10]
[402129577,1768533075235,-906.14,0.00036164,10]
[402129578,1768533075244,-834.24,0.00036164,10]
[402129579,1768533075253,-500.0,0.00036164,10]
[402129580,1768533075263,-500.0,0.00036164,10]
[402129581,1768533075272,-500.0,0.00036164,10]
[402129582,1768533075282,-708.53,0.00036164,10]
[402129583,1768533075291,-500.0,0.00036164,10]
[402129584,1768533075301,-559.26540262,0.00036164,10]
[402129585,1768533075314,-696.04,0.00036164,10]
[402129586,1768533075324,-507.65057978,0.00036164,10]
[402129587,1768533075334,-508.63969585,0.00036164,10]
[402129588,1768533075350,-503.45,0.00036164,10]
[402129589,1768533075359,-500.0,0.00036164,10]
[402129590,1768533075368,-500.0,0.00036164,10]
[402129591,1768533075378,-529.01,0.00036164,10]
[402129592,1768533075388,-500.0,0.00036164,10]
[402129593,1768533075397,-1296.7,0.00036164,10]
[402129594,1768533075406,-1322.15,0.00036164,10]
[402129595,1768533075416,-500.0,0.00036164,10]
[402129596,1768533075426,-500.0,0.00036164,10]
[402129597,1768533075435,-500.0,0.00036164,10]
[402129598,1768533075445,-500.0,0.00036164,10]
[402129599,1768533075454,-327.28454523,0.00036164,10]
[402129600,1768533075465,-500.0,0.00036164,10]
[402129601,1768533075475,-530.5,0.00036164,10]
[402129602,1768533075484,-500.0,0.00036164,10]
[402129603,1768533075494,-500.0,0.00036164,10]
[402129604,1768533075504,-500.0,0.00036164,10]
[402129605,1768533075514,-1090.11,0.00036164,10]
[402129606,1768533075523,-1009.84,0.00036164,10]
[402129607,1768533075533,-849.22,0.00036164,10]
[402129608,1768533075543,-564.31,0.00036164,10]
[402129609,1768533075552,-881.29,0.00036164,10]
[402129610,1768533075563,-1278.53,0.00036164,10]
[402129611,1768533075572,-500.0,0.00036164,10]
[402129612,1768533075583,-500.0,0.00036164,10]
[402129613,1768533075594,-706.07,0.00036164,10]
[402129614,1768533075604,-500.0,0.00036164,10]
[402129615,1768533075615,-907.93,0.00036164,10]
[402129616,1768533075626,-727.84,0.00036164,10]
[402129617,1768533075637,-500.0,0.00036164,10]
[402129618,1768533075647,-1355.17,0.00036164,10]
[402129619,1768533075658,-500.0,0.00036164,10]
[402129620,1768533075669,-1907.36,0.00036164,10]
[402129621,1768533075679,-1042.78,0.00036164,10]
[402129622,1768533075688,-546.54,0.00036164,10]
[402129623,1768533075697,-500.0,0.00036164,10]
[402129624,1768533075707,-500.0,0.00036164,10]
[402129625,1768533075716,-575.32,0.00036164,10]
[402129626,1768533075725,-544.88206113,0.00036164,10]
[402129627,1768533075734,-883.3,0.00036164,10]
[402129628,1768533075744,-523.64,0.00036164,10]
[402129629,1768533075753,-1684.63,0.00036164,10]
[402129630,1768533075762,-754.81,0.00036164,10]
[402129631,1768533075771,-927.81,0.00036164,10]
[402129632,1768533075781,-526.37,0.00036164,10]
[402129633,1768533075791,-591.46,0.00036164,10]
[402129634,1768533075800,-518.01,0.00036164,10]
[402129635,1768533075809,-1266.31,0.00036164,10]
[402129636,1768533075819,-1110.62,0.00036164,10]
[402129637,1768533075828,-624.91,0.00036164,10]
[402129638,1768533075837,-1530.07,0.00036164,10]
[402129639,1768533075847,-500.0,0.00036164,10]
[402129640,1768533075856,-500.0,0.00036164,10]
[402129641,1768533075865,-1250.28,0.00036164,10]
[402129642,1768533075875,-500.0,0.00036164,10]
[402129643,1768533075884,-799.18,0.00036164,10]
[402129644,1768533075894,-865.93,0.00036164,10]
[402129645,1768533075903,-1016.17,0.00036164,10]
[402129646,1768533075913,-1468.54,0.00036164,10]
[402129647,1768533075922,-500.0,0.00036164,10]
[402129648,1768533075932,-1074.27,0.00036164,10]
[402129649,1768533075941,-500.0,0.00036164,10]
[402129650,1768533075951,-522.41,0.00036164,10]
[402129651,1768533075962,-500.0,0.00036164,10]
[402129652,1768533075972,-981.21,0.00036164,10]
[402129653,1768533075982,-1583.14,0.00036164,10]
[402129654,1768533075992,-833.44,0.00036164,10]
[402129655,1768533076001,-1065.78,0.00036164,10]
[402129656,1768533076010,-711.6,0.00036164,10]
[402129657,1768533076020,-500.0,0.00036164,10]
[402129658,1768533076029,-579.06,0.00036164,10]
[402129659,1768533076038,-828.08,0.00036164,10]
[402129660,1768533076047,-1011.76,0.00036164,10]
[402129661,1768533076058,-500.0,0.00036164,10]
[402129662,1768533076067,-500.0,0.00036164,10]
[402129663,1768533076076,-1440.0,0.00036164,10]
[402129664,1768533076085,-500.0,0.00036164,10]
[402129665,1768533076094,-4536.63,0.00036164,10]
[402129666,1768533076104,-1887.83,0.00036164,10]
[402129667,1768533076113,-500.0,0.00036164,10]
[402129668,1768533076123,-693.78,0.00036164,10]
[402129669,1768533076132,-219.35642409,0.00036164,10]
[402129670,1768533076144,-659.02,0.00036164,10]
[402129671,1768533076154,-500.0,0.00036164,10]
[402129672,1768533076163,-1142.17,0.00036164,10]
[402129673,1768533076174,-500.0,0.00036164,10]
[402129674,1768533076183,-500.0,0.00036164,10]
[402129675,1768533076193,-500.0,0.00036164,10]
[402129676,1768533076202,-1335.63,0.00036164,10]
[402129677,1768533076211,-754.12,0.00036164,10]
[402129678,1768533076221,-1110.87,0.00036164,10]
[402129679,1768533076230,-500.0,0.00036164,10]
[402129680,1768533076240,-995.22,0.00036164,10]
[402129681,1768533076249,-1211.49,0.00036164,10]
[402129682,1768533076260,-656.16,0.00036164,10]
[402129683,1768533076269,-614.88,0.00036164,10]
[402129684,1768533076279,-2560.08,0.00036164,10]
[402129685,1768533076288,-1098.04,0.00036164,10]
[402129686,1768533076299,-890.1,0.00036164,10]
[402129687,1768533076313,-883.67,0.00036164,10]
[402129688,1768533076327,-500.0,0.00036164,10]
[402129689,1768533076339,-712.27,0.00036164,10]
[402129690,1768533076350,-500.0,0.00036164,10]
[402129691,1768533076360,-500.0,0.00036164,10]
[402129692,1768533076370,-604.09,0.00036164,10]
[402129693,1768533076382,-500.0,0.00036164,10]
[402129694,1768533076392,-500.0,0.00036164,10]
[402129695,1768533076401,-2111.51,0.00036164,10]
[402129696,1768533076411,-573.16,0.00036164,10]
[402129697,1768533076420,-691.96,0.00036164,10]
[402129698,1768533076430,-553.34082645,0.00036164,10]
[402129699,1768533076442,-593.33,0.00036164,10]
[402129700,1768533076456,-2791.77,0.00036164,10]
[402129701,1768533076469,-500.0,0.00036164,10]
[402129702,1768533076479,-1689.87,0.00036164,10]
[402129703,1768533076490,-583.1,0.00036164,10]
[402129704,1768533076500,-2596.47,0.00036164,10]
[402129705,1768533076509,-500.0,0.00036164,10]
[402129706,1768533076518,-500.0,0.00036164,10]
[402129707,1768533076528,-500.0,0.00036164,10]
[402129708,1768533076538,-500.0,0.00036164,10]
[402129709,1768533076547,-500.0,0.00036164,10]
[402129710,1768533076558,-500.0,0.00036164,10]
[402129711,1768533076569,-934.58,0.00036164,10]
[402129712,1768533076579,-500.0,0.00036164,10]
[402129713,1768533076588,-500.0,0.00036164,10]
[402129714,1768533076599,-1614.53,0.00036164,10]
[402129715,1768533076608,-500.0,0.00036164,10]
[402129716,1768533076617,-770.26,0.00036164,10]
[402129717,1768533076627,-500.0,0.00036164,10]
[402129718,1768533076637,-3447.29,0.00036164,10]
[402129719,1768533076647,-1267.44,0.00036164,10]
[402129720,1768533076657,-500.0,0.00036164,10]
[402129721,1768533076666,-641.35,0.00036164,10]
[402129722,1768533076676,-500.0,0.00036164,10]
[402129723,1768533076685,-500.0,0.00036164,10]
[402129724,1768533076695,-338.46953769,0.00036164,10]
[402129725,1768533076704,-679.02,0.00036164,10]
[402129726,1768533076713,-1073.48,0.00036164,10]
[402129727,1768533076723,-1082.77,0.00036164,10]
[402129728,1768533076732,-500.0,0.00036164,10]
[402129729,1768533076742,-500.0,0.00036164,10]
[402129730,1768533076751,-500.0,0.00036164,10]
[402129731,1768533076760,-500.0,0.00036164,10]
[402129732,1768533076770,-2531.92,0.00036164,10]
[402129733,1768533076779,-500.0,0.00036164,10]
[402129734,1768533076789,-580.58,0.00036164,10]
[402129735,1768533076798,-1499.98,0.00036164,10]
[402129736,1768533076807,-500.0,0.00036164,10]
[402129737,1768533076816,-590.67,0.00036164,10]
[402129738,1768533076827,-806.3,0.00036164,10]
[402129739,1768533076836,-1090.99,0.00036164,10]
[402129740,1768533076846,-626.5,0.00036164,10]
[402129741,1768533076855,-785.33,0.00036164,10]
[402129742,1768533076864,-500.0,0.00036164,10]
[402129743,1768533076874,-500.0,0.00036164,10]
[402129744,1768533076884,-1900.47,0.00036164,10]
[402129745,1768533076894,-500.0,0.00036164,10]
[402129746,1768533076903,-566.46,0.00036164,10]
[402129747,1768533076913,-1337.07,0.00036164,10]
[402129748,1768533076924,-1099.54,0.00036164,10]
[402129749,1768533076934,-863.07,0.00036164,10]
[402129750,1768533076944,-650.83,0.00036164,10]
[402129751,1768533076955,-1106.82,0.00036164,10]
[402129752,1768533076965,-500.0,0.00036164,10]
[402129753,1768533076974,-763.94,0.00036164,10]
[402129754,1768533076984,-500.0,0.00036164,10]
[402129755,1768533076994,-484.14448329,0.00036164,10]
[402129756,1768533077004,-530.4,0.00036164,10]
[402129757,1768533077013,-1151.93,0.00036164,10]
[402129758,1768533077023,-500.0,0.00036164,10]
[402129759,1768533077033,-618.5,0.00036164,10]
[402129760,1768533077042,-500.0,0.00036164,10]
[402129761,1768533077052,-856.56,0.00036164,10]
[402129762,1768533077061,-687.49,0.00036164,10]
[402129763,1768533077071,-554.58,0.00036164,10]
[402129764,1768533077080,-1185.03,0.00036164,10]
[402129765,1768533077089,-534.21,0.00036164,10]
[402129766,1768533077099,-919.68,0.00036164,10]
[402129767,1768533077107,-1223.78,0.00036164,10]
[402129768,1768533077117,-570.58374198,0.00036164,10]
[402129769,1768533077127,-1982.33,0.00036164,10]
[402129770,1768533077136,-500.0,0.00036164,10]
[402129771,1768533077145,-500.0,0.00036164,10]
[402129772,1768533077154,-1459.82,0.00036164,10]
[402129773,1768533077163,-2394.56,0.00036164,10]
[402129774,1768533077173,-797.28,0.00036164,10]
[402129775,1768533077183,-915.84,0.00036164,10]
[402129776,1768533077192,-500.0,0.00036164,10]
[402129777,1768533077201,-1144.08,0.00036164,10]
[402129778,1768533077210,-630.74,0.00036164,10]
[402129779,1768533077219,-990.39,0.00036164,10]
[402129780,1768533077229,-500.0,0.00036164,10]
[402129781,1768533077238,-970.0,0.00036164,10]
[402129782,1768533077247,-500.0,0.00036164,10]
[402129783,1768533077256,-1043.41,0.00036164,10]
[402129784,1768533077265,-500.0,0.00036164,10]
[402129785,1768533077274,-714.39,0.00036164,10]
[402129786,1768533077283,-1382.08,0.00036164,10]
[402129787,1768533077293,-500.0,0.00036164,10]
[402129788,1768533077304,-1232.95,0.00036164,10]
[402129789,1768533077314,-631.94066728,0.00036164,10]
[402129790,1768533077324,-500.0,0.00036164,10]
[402129791,1768533077333,-1586.52,0.00036164,10]
[402129792,1768533077343,-500.0,0.00036164,10]
[402129793,1768533077353,-1599.89,0.00036164,10]
[402129794,1768533077362,-1173.18,0.00036164,10]
[402129795,1768533077373,-830.99,0.00036164,10]
[402129796,1768533077382,-500.0,0.00036164,10]
[402129797,1768533077391,-500.0,0.00036164,10]
[402129798,1768533077400,-765.86,0.00036164,10]
[402129799,1768533077409,-2116.51,0.00036164,10]
[402129800,1768533077418,-1917.81,0.00036164,10]
[402129801,1768533077429,-733.71,0.00036164,10]
[402129802,1768533077438,-937.12,0.00036164,10]
[402129803,1768533077447,-605.54,0.00036164,10]
[402129804,1768533077456,-500.0,0.00036164,10]
[402129805,1768533077465,-500.0,0.00036164,10]
[402129806,1768533077475,-1061.94,0.00036164,10]
[402129807,1768533077484,-500.0,0.00036164,10]
[402129808,1768533077493,-756.08,0.00036164,10]
[402129809,1768533077502,-3909.07,0.00036164,10]
[402129810,1768533077511,-500.0,0.00036164,10]
[402129811,1768533077520,-1125.86,0.00036164,10]
[402129812,1768533077530,-1032.37,0.00036164,10]
[402129813,1768533077540,-621.34,0.00036164,10]
[402129814,1768533077629,-678.14,0.00036164,10]
[402129815,1768533077639,-995.1,0.00036164,10]
[402129816,1768533077648,-500.0,0.00036164,5]
[402129817,1768533077658,-500.0,0.00036164,10]
[402129818,1768533077667,-670.17,0.00036164,10]
[402129819,1768533077676,-500.0,0.00036164,10]
[402129820,1768533077685,-500.0,0.00036164,10]
[402129821,1768533077694,-500.0,0.00036164,10]
[402129822,1768533077704,-1000.0,0.00036164,10]
[402129823,1768533077714,-1317.52,0.00036164,10]
[402129824,1768533077723,-500.0,0.00036164,10]
[402129825,1768533077733,-1547.54,0.00036164,10]
[402129826,1768533077742,-500.0,0.00036164,10]
[402129827,1768533077752,-500.0,0.00036164,10]
[402129828,1768533077761,-500.0,0.00036164,10]
[402129829,1768533077772,-1111.81,0.00036164,10]
[402129830,1768533077781,-640.71,0.00036164,10]
[402129831,1768533077792,-585.05,0.00036164,10]
[402129832,1768533077801,-3663.09,0.00036164,10]
[402129833,1768533077812,-1810.34,0.00036164,10]
[402129834,1768533077821,-1345.06,0.00036164,10]
[402129835,1768533077830,-1841.26,0.00036164,10]
[402129836,1768533077839,-500.0,0.00036164,10]
[402129837,1768533077849,-1049.9,0.00036164,10]
[402129838,1768533077858,-1229.72,0.00036164,10]
[402129839,1768533077868,-500.0,0.00036164,10]
[402129840,1768533077879,-500.0,0.00036164,10]
[402129841,1768533077888,-964.64,0.00036164,10]
[402129842,1768533077897,-500.0,0.00036164,10]
[402129843,1768533077906,-500.0,0.00036164,10]
[402129844,1768533077916,-510.15005008,0.00036164,10]
[402129845,1768533077926,-553.99,0.00036164,10]
[402129846,1768533077935,-500.0,0.00036164,10]
[402129847,1768533077945,-972.11,0.00036164,10]
[402129848,1768533077955,-1496.45,0.00036164,10]
[402129849,1768533077965,-608.08337419,0.00036164,10]
[402129850,1768533077974,-1096.15,0.00036164,10]
[402129851,1768533077983,-500.0,0.00036164,10]
[402129852,1768533077993,-500.0,0.00036164,10]
[402129853,1768533078002,-502.99,0.00036164,10]
[402129854,1768533078012,-500.0,0.00036164,10]
[402129855,1768533078021,-588.3155094,0.00036164,10]
[402129856,1768533078031,-500.0,0.00036164,10]
[402129857,1768533078041,-1472.54,0.00036164,10]
[402129858,1768533078050,-2431.65,0.00036164,10]
[402129859,1768533078059,-500.0,0.00036164,10]
[402129860,1768533078068,-741.74,0.00036164,10]
[402129861,1768533078078,-500.0,0.00036164,10]
[402129862,1768533078088,-2087.02,0.00036164,10]
[402129863,1768533078097,-541.48,0.00036164,10]
[402129864,1768533078107,-1563.91,0.00036164,10]
[402129865,1768533078115,-500.0,0.00036164,10]
[402129866,1768533078125,-521.03,0.00036164,10]
[402129867,1768533078134,-713.49,0.00036164,10]
[402129868,1768533078144,-1024.71,0.00036164,10]
[402129869,1768533078153,-3282.3,0.00036164,10]
[402129870,1768533078162,-2606.92,0.00036164,10]
[402129871,1768533078171,-15.24766735,0.00036164,10]
[402129872,1768533078231,-602.53274014,0.00036164,10]
[402129873,1768533079649,-1101.0,0.00031714,5]
[402129874,1768533079658,-376.20017763,0.00035419,90]
[402129875,1768533079713,-623.44627825,0.00035419,90]
[402129876,1768533079725,-0.35354412,0.00035419,90]
[402129877,1768533079734,-1000.0,0.00035419,90]